Workbook

Sheet (1-4)
A1: 1 | D1: 2 | H1: 3 | M1: 4
A2: 20 | D2: 21 | G2: 1 | H2: 15 | M2: 70
A3: 17 | D3: 20 | G3: 2 | H3: 20 | M3: 69
A4: 16 | D4: 17 | G4: 3 | H4: 25 | M4: 68
A5: 12 | D5: 16 | G5: 4 | H5: 25 | M5: 64
A6: 10 | D6: 12 | G6: 5 | H6: 27 | M6: 58
D7: 10 | G7: 6 | H7: 28 | M7: 57
A8: Mean | B8: =AVERAGE(A2:A6) -> 15 | G8: 7 | H8: 30 | M8: 57
A9: Median | B9: =MEDIAN(A2:A6) -> 16 | D9: Mean | E9: =AVERAGE(D2:D7) -> 16 | G9: 8 | H9: 34 | M9: 55
D10: Median | E10: =MEDIAN(D2:D7) -> 16.5 | M10: 53
G11: Excel Method | I11: INC | J11: EXC | K11: Approximate | M11: 53
G12: 0.2 | H12: ="Percentile "&TEXT(G12,"0.00%") -> Percentile 20.00% | I12: =_xlfn.PERCENTILE.INC($H$2:$H$9,G12) -> 22 | J12: =_xlfn.PERCENTILE.EXC($H$2:$H$9,G12) -> 19 | K12: =TEXT(G12,"0.00%")&" of values below "&I12&" and "&TEXT(1-G12,"0.00%")&" of values above "&I12 -> 20.00% of values below 22 and 80.00% of values above 22 | M12: 53
G13: 0.25 | H13: ="Percentile "&TEXT(G13,"0.00%") -> Percentile 25.00% | I13: =_xlfn.PERCENTILE.INC($H$2:$H$9,G13) -> 23.75 | J13: =_xlfn.PERCENTILE.EXC($H$2:$H$9,G13) -> 21.25 | K13: =TEXT(G13,"0.00%")&" of values below "&I13&" and "&TEXT(1-G13,"0.00%")&" of values above "&I13 -> 25.00% of values below 23.75 and 75.00% of values above 23.75
G14: 0.65 | H14: ="Percentile "&TEXT(G14,"0.00%") -> Percentile 65.00% | I14: 27.55 | J14: 27.85 | K14: =TEXT(G14,"0.00%")&" of values below "&I14&" and "&TEXT(1-G14,"0.00%")&" of values above "&I14 -> 65.00% of values below 27.55 and 35.00% of values above 27.55 | M14: Mean | N14: =AVERAGE(M2:M12) -> 59.72727273
G15: 0.75 | H15: ="Percentile "&TEXT(G15,"0.00%") -> Percentile 75.00% | I15: 28.5 | J15: 29.5 | K15: =TEXT(G15,"0.00%")&" of values below "&I15&" and "&TEXT(1-G15,"0.00%")&" of values above "&I15 -> 75.00% of values below 28.5 and 25.00% of values above 28.5 | M15: Median | N15: =MEDIAN(M2:M12) -> 57
M16: Mode | N16: =_xlfn.MODE.SNGL(M2:M12) -> 53
G17: Textbook By Hand Method
G18: =G12 -> 0.2 | H18: ="i for "&TEXT(G18,"0.00%")&" =" -> i for 20.00% = | I18: =COUNT($H$2:$H$9)*G18 -> 1.6
G19: =G13 -> 0.25 | H19: ="i for "&TEXT(G19,"0.00%")&" =" -> i for 25.00% = | I19: =COUNT($H$2:$H$9)*G19 -> 2
G20: =G14 -> 0.65 | H20: ="i for "&TEXT(G20,"0.00%")&" =" -> i for 65.00% = | I20: =COUNT($H$2:$H$9)*G20 -> 5.2
G21: =G15 -> 0.75 | H21: ="i for "&TEXT(G21,"0.00%")&" =" -> i for 75.00% = | I21: =COUNT($H$2:$H$9)*G21 -> 6
K22: Approximate | L22: check | M22: check
G23: =G18 -> 0.2 | H23: ="Percentile "&TEXT(G18,"0.00%") -> Percentile 20.00% | I23: =H3 -> 20 | K23: =TEXT(G23,"0.00%")&" of values below "&I23&" and "&TEXT(1-G23,"0.00%")&" of values above "&I23 -> 20.00% of values below 20 and 80.00% of values above 20 | L23: =VLOOKUP(ROUNDUP(I18,0),$G$2:$H$9,2,0) -> 20 | M23: =IF(I18=INT(I18),AVERAGE(VLOOKUP(I18,$G$2:$H$9,2,0),VLOOKUP(I18+1,$G$2:$H$9,2,0)),VLOOKUP(ROUNDUP(I18,0),$G$2:$H$9,2,0)) -> 20
G24: =G19 -> 0.25 | H24: ="Percentile "&TEXT(G19,"0.00%") -> Percentile 25.00% | I24: =AVERAGE(H3:H4) -> 22.5 | K24: =TEXT(G24,"0.00%")&" of values below "&I24&" and "&TEXT(1-G24,"0.00%")&" of values above "&I24 -> 25.00% of values below 22.5 and 75.00% of values above 22.5 | L24: =AVERAGE(VLOOKUP(I19,$G$2:$H$9,2,1),VLOOKUP(I19+1,$G$2:$H$9,2,1)) -> 22.5 | M24: =IF(I19=INT(I19),AVERAGE(VLOOKUP(I19,$G$2:$H$9,2,0),VLOOKUP(I19+1,$G$2:$H$9,2,0)),VLOOKUP(ROUNDUP(I19,0),$G$2:$H$9,2,0)) -> 22.5
G25: =G20 -> 0.65 | H25: ="Percentile "&TEXT(G20,"0.00%") -> Percentile 65.00% | I25: =H7 -> 28 | K25: =TEXT(G25,"0.00%")&" of values below "&I25&" and "&TEXT(1-G25,"0.00%")&" of values above "&I25 -> 65.00% of values below 28 and 35.00% of values above 28 | L25: =VLOOKUP(ROUNDUP(I20,0),$G$2:$H$9,2,0) -> 28 | M25: =IF(I20=INT(I20),AVERAGE(VLOOKUP(I20,$G$2:$H$9,2,0),VLOOKUP(I20+1,$G$2:$H$9,2,0)),VLOOKUP(ROUNDUP(I20,0),$G$2:$H$9,2,0)) -> 28
G26: =G21 -> 0.75 | H26: ="Percentile "&TEXT(G21,"0.00%") -> Percentile 75.00% | I26: =AVERAGE(H7:H8) -> 29 | K26: =TEXT(G26,"0.00%")&" of values below "&I26&" and "&TEXT(1-G26,"0.00%")&" of values above "&I26 -> 75.00% of values below 29 and 25.00% of values above 29 | L26: =AVERAGE(VLOOKUP(I21,$G$2:$H$9,2,1),VLOOKUP(I21+1,$G$2:$H$9,2,1)) -> 29 | M26: =IF(I21=INT(I21),AVERAGE(VLOOKUP(I21,$G$2:$H$9,2,0),VLOOKUP(I21+1,$G$2:$H$9,2,0)),VLOOKUP(ROUNDUP(I21,0),$G$2:$H$9,2,0)) -> 29

Sheet (6) (hidden)
D1: No | E1: Marketing | J1: No | K1: Accounting
D2: 1 | E2: 28.4 | J2: 1 | K2: 33.5
D3: 2 | E3: 30.6 | J3: 2 | K3: 38
D4: 3 | E4: 34.2 | J4: 3 | K4: 40.2
D5: 4 | E5: 34.2 | J5: 4 | K5: 40.8
D6: 5 | E6: 35.2 | J6: 5 | K6: 41.1
D7: 6 | E7: 35.8 | J7: 6 | K7: 41.7
D8: 7 | E8: 37.7 | J8: 7 | K8: 43.5
D9: 8 | E9: 39.5 | J9: 8 | K9: 44.2
D10: 9 | E10: 42.4 | J10: 9 | K10: 45.2
D11: 10 | E11: 45 | J11: 10 | K11: 47.8
J12: 11 | K12: 49.1
J13: 12 | K13: 49.7
J14: 13 | K14: 49.9
J15: 14 | K15: 53.9
J16: 15 | K16: 55.5
J17: 16 | K17: 57.1
D19: Count = n = Sample Size | E19: =COUNT(Marketing) -> 10 | J19: Count = n = | K19: =COUNT(Accounting) -> 16
D20: Mean | E20: =AVERAGE(Marketing) -> 36.3 | J20: Mean | K20: =AVERAGE(Accounting) -> 45.7
D21: Median | E21: =MEDIAN(Marketing) -> 35.5 | J21: Median | K21: =MEDIAN(Accounting) -> 44.7
D22: Mode | E22: =MODE(Marketing) -> 34.2 | J22: Mode | K22: =MODE(Accounting) -> 
C23: 1 | D23: ="Quartile "&C23 -> Quartile 1 | E23: =QUARTILE(Marketing,C23) -> 34.2 | I23: 1 | J23: ="Quartile "&I23 -> Quartile 1 | K23: =QUARTILE(Accounting,I23) -> 41.025
C24: 3 | D24: ="Quartile "&C24 -> Quartile 3 | E24: =QUARTILE(Marketing,C24) -> 39.05 | I24: 3 | J24: ="Quartile "&I24 -> Quartile 3 | K24: =QUARTILE(Accounting,I24) -> 49.75
C25: 0.25 | D25: ="Excel Percentile "&TEXT(C25,"0.00%") -> Excel Percentile 25.00% | E25: =PERCENTILE(Marketing,C25) -> 34.2 | I25: 0.25 | J25: ="Excel Percentile "&TEXT(I25,"0.00%") -> Excel Percentile 25.00% | K25: =PERCENTILE(Accounting,I25) -> 41.025
C26: 0.75 | D26: ="Excel Percentile "&TEXT(C26,"0.00%") -> Excel Percentile 75.00% | E26: =PERCENTILE(Marketing,C26) -> 39.05 | I26: 0.75 | J26: ="Excel Percentile "&TEXT(I26,"0.00%") -> Excel Percentile 75.00% | K26: =PERCENTILE(Accounting,I26) -> 49.75
A27: 0.25 | B27: =E$19*A27 -> 2.5 | C27: ="i = "&E$19*A27 -> i = 2.5 | D27: ="By Hand Percentile "&TEXT(A27,"0.00%") -> By Hand Percentile 25.00% | E27: =E4 -> 34.2 | G27: 0.25 | H27: =K$19*G27 -> 4 | I27: ="i = "&K$19*G27 -> i = 4 | J27: ="By Hand Percentile "&TEXT(G27,"0.00%") -> By Hand Percentile 25.00% | K27: =AVERAGE(K5:K6) -> 40.95
A28: 0.75 | B28: =E$19*A28 -> 7.5 | C28: ="i = "&E$19*A28 -> i = 7.5 | D28: ="By Hand Percentile "&TEXT(A28,"0.00%") -> By Hand Percentile 75.00% | E28: =E9 -> 39.5 | G28: 0.75 | H28: =K$19*G28 -> 12 | I28: ="i = "&K$19*G28 -> i = 12 | J28: ="By Hand Percentile "&TEXT(G28,"0.00%") -> By Hand Percentile 75.00% | K28: =AVERAGE(K13:K14) -> 49.8
E30: check | K30: check
E31: =IF(B27=INT(B27),AVERAGE(VLOOKUP(B27,VMarketing,2),VLOOKUP(1+B27,VMarketing,2)),VLOOKUP(ROUNDUP(B27,0),VMarketing,2)) -> 34.2 | K31: =IF(H27=INT(H27),AVERAGE(VLOOKUP(H27,VAccounting,2),VLOOKUP(1+H27,VAccounting,2)),VLOOKUP(ROUNDUP(H27,0),VAccounting,2)) -> 40.95
E32: =IF(B28=INT(B28),AVERAGE(VLOOKUP(B28,VMarketing,2),VLOOKUP(1+B28,VMarketing,2)),VLOOKUP(ROUNDUP(B28,0),VMarketing,2)) -> 39.5 | K32: =IF(H28=INT(H28),AVERAGE(VLOOKUP(H28,VAccounting,2),VLOOKUP(1+H28,VAccounting,2)),VLOOKUP(ROUNDUP(H28,0),VAccounting,2)) -> 49.8
A34: ="The sample data strongly indicate that Accounting Majors (AM) make more than Marketing Majors (MM) when they graduate. The average salary difference between AM and MM is "&E20&" - "&K20&" = "&ROUND(ABS(E20-K20),2)&". In addition 25% of the AM make "&DOLLAR(K24*1000)&" or more; whereas for MM, 25% of the MM make "&DOLLAR(E28*1000)&" or more." -> The sample data strongly indicate that Accounting Majors (AM) make more than Marketing Majors (MM) when they graduate. The average salary difference between AM and MM is 36.3 - 45.7 = 9.4. In addition 25% of the AM make $49,750.00 or more; whereas for MM, 25% of the MM make $39,500.00 or more.

Sheet (8)
F1: No | G1: Cost | I1: Cost | J1: Frequency | N1: Not ask for in the problem
F2: 1 | G2: 100 | I2: 120 | J2: =COUNTIF(Cost,I2) -> 3 | N2: Point | O2: Cost | P2: Rank | Q2: Percent | U2: %
F3: 2 | G3: 105 | I3: 130 | J3: 1 | N3: 7 | O3: 360 | P3: 1 | Q3: 1 | U3: =IF(O3=MAX($O$3:$O$22),1,IF(O3=MIN($O$3:$O$22),0,"R")) -> 1
F4: 3 | G4: 105 | I4: 105 | J4: 2 | N4: 20 | O4: 255 | P4: 2 | Q4: 0.947 | U4: =IF(O4=MAX($O$3:$O$22),1,IF(O4=MIN($O$3:$O$22),0,(COUNT($O4:O$22)-1)/(COUNT($O$3:$O$22)-1))) -> 0.9473684211
F5: 4 | G5: 110 | I5: 100 | J5: 1 | N5: 16 | O5: 235 | P5: 3 | Q5: 0.894 | U5: =IF(O5=MAX($O$3:$O$22),1,IF(O5=MIN($O$3:$O$22),0,(COUNT($O5:O$22)-1)/(COUNT($O$3:$O$22)-1))) -> 0.8947368421
F6: 5 | G6: 115 | I6: 230 | J6: 1 | N6: 5 | O6: 230 | P6: 4 | Q6: 0.842 | U6: =IF(O6=MAX($O$3:$O$22),1,IF(O6=MIN($O$3:$O$22),0,(COUNT($O6:O$22)-1)/(COUNT($O$3:$O$22)-1))) -> 0.8421052632
F7: 6 | G7: 115 | I7: 150 | J7: 1 | N7: 14 | O7: 195 | P7: 5 | Q7: 0.789 | U7: =IF(O7=MAX($O$3:$O$22),1,IF(O7=MIN($O$3:$O$22),0,(COUNT($O7:O$22)-1)/(COUNT($O$3:$O$22)-1))) -> 0.7894736842
F8: 7 | G8: 120 | I8: 360 | J8: 1 | N8: 12 | O8: 180 | P8: 6 | Q8: 0.736 | U8: =IF(O8=MAX($O$3:$O$22),1,IF(O8=MIN($O$3:$O$22),0,(COUNT($O8:O$22)-1)/(COUNT($O$3:$O$22)-1))) -> 0.7368421053
F9: 8 | G9: 120 | I9: 115 | J9: 2 | N9: 17 | O9: 160 | P9: 7 | Q9: 0.684 | U9: =IF(O9=MAX($O$3:$O$22),1,IF(O9=MIN($O$3:$O$22),0,(COUNT($O9:O$22)-1)/(COUNT($O$3:$O$22)-1))) -> 0.6842105263
F10: 9 | G10: 120 | I10: 110 | J10: 1 | N10: 18 | O10: 155 | P10: 8 | Q10: 0.631 | U10: =IF(O10=MAX($O$3:$O$22),1,IF(O10=MIN($O$3:$O$22),0,(COUNT($O10:O$22)-1)/(COUNT($O$3:$O$22)-1))) -> 0.6315789474
F11: 10 | G11: 130 | I11: 180 | J11: 1 | N11: 6 | O11: 150 | P11: 9 | Q11: 0.578 | U11: =IF(O11=MAX($O$3:$O$22),1,IF(O11=MIN($O$3:$O$22),0,(COUNT($O11:O$22)-1)/(COUNT($O$3:$O$22)-1))) -> 0.5789473684
F12: 11 | G12: 140 | I12: 195 | J12: 1 | N12: 19 | O12: 140 | P12: 10 | Q12: 0.526 | U12: =IF(O12=MAX($O$3:$O$22),1,IF(O12=MIN($O$3:$O$22),0,(COUNT($O12:O$22)-1)/(COUNT($O$3:$O$22)-1))) -> 0.5263157895
F13: 12 | G13: 150 | I13: 235 | J13: 1 | N13: 2 | O13: 130 | P13: 11 | Q13: 0.473 | U13: =IF(O13=MAX($O$3:$O$22),1,IF(O13=MIN($O$3:$O$22),0,(COUNT($O13:O$22)-1)/(COUNT($O$3:$O$22)-1))) -> 0.4736842105
F14: 13 | G14: 155 | I14: 160 | J14: 1 | N14: 1 | O14: 120 | P14: 12 | Q14: 0.315 | U14: =IF(O14=MAX($O$3:$O$22),1,IF(O14=MIN($O$3:$O$22),0,(COUNT($O14:O$22)-1)/(COUNT($O$3:$O$22)-1))) -> 0.4210526316
F15: 14 | G15: 160 | I15: 155 | J15: 1 | N15: 11 | O15: 120 | P15: 12 | Q15: 0.315 | U15: =IF(O15=MAX($O$3:$O$22),1,IF(O15=MIN($O$3:$O$22),0,(COUNT($O15:O$22)-1)/(COUNT($O$3:$O$22)-1))) -> 0.3684210526
F16: 15 | G16: 180 | I16: 140 | J16: 1 | N16: 15 | O16: 120 | P16: 12 | Q16: 0.315 | U16: =IF(O16=MAX($O$3:$O$22),1,IF(O16=MIN($O$3:$O$22),0,(COUNT($O16:O$22)-1)/(COUNT($O$3:$O$22)-1))) -> 0.3157894737
F17: 16 | G17: 195 | I17: 255 | J17: 1 | N17: 8 | O17: 115 | P17: 15 | Q17: 0.21 | U17: =IF(O17=MAX($O$3:$O$22),1,IF(O17=MIN($O$3:$O$22),0,(COUNT($O17:O$22)-1)/(COUNT($O$3:$O$22)-1))) -> 0.2631578947
F18: 17 | G18: 230 | N18: 13 | O18: 115 | P18: 15 | Q18: 0.21 | U18: =IF(O18=MAX($O$3:$O$22),1,IF(O18=MIN($O$3:$O$22),0,(COUNT($O18:O$22)-1)/(COUNT($O$3:$O$22)-1))) -> 0.2105263158
F19: 18 | G19: 235 | N19: 9 | O19: 110 | P19: 17 | Q19: 0.157 | U19: =IF(O19=MAX($O$3:$O$22),1,IF(O19=MIN($O$3:$O$22),0,(COUNT($O19:O$22)-1)/(COUNT($O$3:$O$22)-1))) -> 0.1578947368
F20: 19 | G20: 255 | N20: 3 | O20: 105 | P20: 18 | Q20: 0.052 | U20: =IF(O20=MAX($O$3:$O$22),1,IF(O20=MIN($O$3:$O$22),0,(COUNT($O20:O$22)-1)/(COUNT($O$3:$O$22)-1))) -> 0.1052631579
F21: 20 | G21: 360 | N21: 10 | O21: 105 | P21: 18 | Q21: 0.052 | U21: =IF(O21=MAX($O$3:$O$22),1,IF(O21=MIN($O$3:$O$22),0,(COUNT($O21:O$22)-1)/(COUNT($O$3:$O$22)-1))) -> 0.05263157895
N22: 4 | O22: 100 | P22: 20 | Q22: 0 | U22: =IF(O22=MAX($O$3:$O$22),1,IF(O22=MIN($O$3:$O$22),0,(COUNT($O$22:O22)-1)/(COUNT($O$3:$O$22)-1))) -> 0
F24: Count = n = Sample Size | G24: =COUNT(Cost) -> 20
F25: Mean | G25: =AVERAGE(Cost) -> 160
F26: Median | G26: =MEDIAN(Cost) -> 135
F27: Mode | G27: =_xlfn.MODE.SNGL(Cost) -> 120
E28: 1 | F28: ="Quartile "&E28 -> Quartile 1 | G28: =_xlfn.QUARTILE.INC(Cost,E28) -> 115 | H28: =_xlfn.QUARTILE.EXC(Cost,E28) -> 115
E29: 3 | F29: ="Quartile "&E29 -> Quartile 3 | G29: =_xlfn.QUARTILE.INC(Cost,E29) -> 183.75 | H29: =_xlfn.QUARTILE.EXC(Cost,E29) -> 191.25
E30: 0.9 | F30: ="Excel Percentile "&TEXT(E30,"0.00%") -> Excel Percentile 90.00% | G30: =_xlfn.PERCENTILE.INC(Cost,E30) -> 237 | H30: =_xlfn.PERCENTILE.EXC(Cost,E30) -> 253
E31: 0.25 | F31: ="Excel Percentile "&TEXT(E31,"0.00%") -> Excel Percentile 25.00% | G31: =_xlfn.PERCENTILE.INC(Cost,E31) -> 115 | H31: =_xlfn.PERCENTILE.EXC(Cost,E31) -> 115
E32: 0.75 | F32: ="Excel Percentile "&TEXT(E32,"0.00%") -> Excel Percentile 75.00% | G32: =_xlfn.PERCENTILE.INC(Cost,E32) -> 183.75 | H32: =_xlfn.PERCENTILE.EXC(Cost,E32) -> 191.25
C33: 0.9 | D33: =G$24*C33 -> 18 | E33: ="i = "&G$24*C33 -> i = 18 | F33: ="By Hand Percentile "&TEXT(C33,"0.00%") -> By Hand Percentile 90.00% | G33: =AVERAGE(G19:G20) -> 245 | H33: =TEXT(C33,"0.00%")&" of the values are less than or equal to a cost of "&DOLLAR(G38)&" and "&TEXT(1-C33,"0.00%")&" of the values are greater than or equal to a cost of "&DOLLAR(G38)&"." -> 90.00% of the values are less than or equal to a cost of $245.00 and 10.00% of the values are greater than or equal to a cost of $245.00.
C34: 0.25 | D34: =G$24*C34 -> 5 | E34: ="i = "&G$24*C34 -> i = 5 | F34: ="By Hand Percentile "&TEXT(C34,"0.00%") -> By Hand Percentile 25.00% | G34: =AVERAGE(G6:G7) -> 115
C35: 0.75 | D35: =G$24*C35 -> 15 | E35: ="i = "&G$24*C35 -> i = 15 | F35: ="By Hand Percentile "&TEXT(C35,"0.00%") -> By Hand Percentile 75.00% | G35: =AVERAGE(G16:G17) -> 187.5
G37: check
G38: =IF(D33=INT(D33),AVERAGE(VLOOKUP(D33,VCost,2),VLOOKUP(1+D33,VCost,2)),VLOOKUP(ROUNDUP(D33,0),VCost,2)) -> 245
G39: =IF(D34=INT(D34),AVERAGE(VLOOKUP(D34,VCost,2),VLOOKUP(1+D34,VCost,2)),VLOOKUP(ROUNDUP(D34,0),VCost,2)) -> 115
G40: =IF(D35=INT(D35),AVERAGE(VLOOKUP(D35,VCost,2),VLOOKUP(1+D35,VCost,2)),VLOOKUP(ROUNDUP(D35,0),VCost,2)) -> 187.5

Sheet (9) (hidden)
A1: No. | B1: Min per month | D1: Count = n = Sample Size | E1: =COUNT(Min_per_month) -> 15
A2: 1 | B2: 105 | D2: Mean | E2: =AVERAGE(Min_per_month) -> 422
A3: 2 | B3: 135 | D3: Median | E3: =MEDIAN(Min_per_month) -> 380
A4: 3 | B4: 180 | D4: Decimal for Percentile | E4: 0.85
A5: 4 | B5: 210 | D5: ="i "&TEXT(E4,"0.00%")&" =" -> i 85.00% = | E5: =E1*E4 -> 12.75 | G5: check
A6: 5 | B6: 245 | D6: ="By hand Percentile "&TEXT(E4,"0.00%")&" =" -> By hand Percentile 85.00% = | E6: =B14 -> 690 | G6: =IF(E5=INT(E5),AVERAGE(VLOOKUP(E5,A2:B16,2),VLOOKUP(E5+1,A2:B16,2)),VLOOKUP(ROUNDUP(E5,0),A2:B16,2)) -> 690
A7: 6 | B7: 250 | D7: ="Excel Percentile "&TEXT(E4,"0.00%")&" =" -> Excel Percentile 85.00% = | E7: =PERCENTILE(Min_per_month,E4) -> 682.5 | H7: PERCENTRANK function
A8: 7 | B8: 265 | D8: Ave Minutes for a plan | E8: 750 | H8: =PERCENTRANK(Min_per_month,E8) -> 0.887
A9: 8 | B9: 380 | D9: Decimal for Percentile | E9: 0.887755102
A10: 9 | B10: 395 | D10: ="Excel Percentile "&TEXT(E9,"0.0000%")&" =" -> Excel Percentile 88.7755% = | E10: =PERCENTILE(Min_per_month,E9) -> 750
A11: 10 | B11: 420
A12: 11 | B12: 430 | D12: ="The data suggests that most cell phone users do not use the full amount of time allotted to them. In fact, it is not until the "&TEXT(E9,"0.0000%")&" percentile that users go over the "&E8&" limit. According to the data, "&TEXT(1-E9,"0.0000%")&" of the users use "&E8&" or more minutes per month." -> The data suggests that most cell phone users do not use the full amount of time allotted to them. In fact, it is not until the 88.7755% percentile that users go over the 750 limit. According to the data, 11.2245% of the users use 750 or more minutes per month.
A13: 12 | B13: 615
A14: 13 | B14: 690
A15: 14 | B15: 830
A16: 15 | B16: 1180

Sheet (11)
A1: City | B1: 16.2 | C1: 16.7 | D1: 15.9 | E1: 14.4 | F1: 13.2 | G1: 15.3 | H1: 16.8 | I1: 16 | J1: 16.1 | K1: 15.3 | L1: 15.2 | M1: 15.3 | N1: 16.2
A2: Highway | B2: 19.4 | C2: 20.6 | D2: 18.3 | E2: 18.6 | F2: 19.2 | G2: 17.4 | H2: 17.2 | I2: 18.6 | J2: 19 | K2: 21.1 | L2: 19.4 | M2: 18.5 | N2: 18.7
A4: City | D4: Highway | G4: Difference
A5: Mean | B5: =AVERAGE(City) -> 15.58461538 | D5: Mean | E5: =AVERAGE(Highway) -> 18.92307692 | G5: =E5-B5 -> 3.338461538
A6: Median | B6: =MEDIAN(City) -> 15.9 | D6: Median | E6: =MEDIAN(Highway) -> 18.7 | G6: =E6-B6 -> 2.8
A7: mode | B7: =_xlfn.MODE.SNGL(City) -> 15.3 | D7: mode | E7: =_xlfn.MODE.SNGL(Highway) -> 19.4 | G7: =E7-B7 -> 4.1
A9: With all three different ways to measure what a typical value is, the Highway MPG is higher.

Sheet (15)
A1: Sample Data | C1: MIN | D1: =MIN(A2:A9) -> 15 | N1: =A1 -> Sample Data | O1: Y
A2: 34 | C2: MAX | D2: =MAX(A2:A9) -> 34 | H2: If i is decimal, roundup to next integer | N2: 34 | O2: 1
A3: 30 | C3: Range = Max - Min = | D3: =D2-D1 -> 19 | H3: If i is whole number, average 1 and 1 + 1 | N3: 30 | O3: 1
A4: 28 | H4: By Hand Method | N4: 28 | O4: 1
A5: 27 | D5: Excel Method | H5: Count = n = sample size | I5: =COUNT(A2:A9) -> 8 | K5: Value | N5: 27 | O5: 1
A6: 25 | C6: ="QUARTILE"&F6 -> QUARTILE1 | D6: =_xlfn.QUARTILE.INC($A$2:$A$9,F6) -> 23.75 | E6: =_xlfn.QUARTILE.EXC(A2:$A$9,F6) -> 21.25 | F6: 1 | H6: 0.25 | I6: ="i = index @ "&H6&" =" -> i = index @ 0.25 = | J6: =$I$5*H6 -> 2 | K6: =AVERAGE(A7:A8) -> 22.5 | N6: 25 | O6: 1
A7: 25 | C7: ="QUARTILE"&F7 -> QUARTILE3 | D7: =_xlfn.QUARTILE.INC($A$2:$A$9,F7) -> 28.5 | E7: =_xlfn.QUARTILE.EXC(A3:$A$9,F7) -> 28 | F7: 3 | H7: 0.75 | I7: ="i = index @ "&H7&" =" -> i = index @ 0.75 = | J7: =$I$5*H7 -> 6 | K7: =AVERAGE(A3:A4) -> 29 | N7: 25 | O7: 1
A8: 20 | C8: InterQuartile Range = Range for Middle 50% Values = | D8: =D7-D6 -> 4.75 | H8: InterQuartile Range = Range for Middle 50% Values = | K8: =K7-K6 -> 6.5 | N8: 20 | O8: 1
A9: 15 | C9: * small data set makes these value very different than "by hand" method | N9: 15 | O9: 1
D11: Excel Method | M11: Mean | N11: =D15 -> 25.5 | O11: 0.5
C12: Sample Variance = VAR = | D12: =_xlfn.VAR.S(A2:A9) -> 34.57142857 | E12: squared units
C13: Sample Standard Deviation = STDEV = | D13: =_xlfn.STDEV.S(A2:A9) -> 5.879747322 | E13: ="Not "&E12 -> Not squared units
C14: Count | D14: =COUNT(A2:A9) -> 8
C15: Mean | D15: =AVERAGE(A2:A9) -> 25.5
B17: By Hand Method
B18: X | C18: (X - Xbar) (Deviations) | D18: (X - Xbar)^2
B19: =A2 -> 34 | C19: =B19-$D$15 -> 8.5 | D19: =C19^2 -> 72.25
B20: 30 | C20: 4.5 | D20: 20.25
B21: 28 | C21: 2.5 | D21: 6.25
B22: 27 | C22: 1.5 | D22: 2.25
B23: 25 | C23: -0.5 | D23: 0.25
B24: 25 | C24: -0.5 | D24: 0.25
B25: 20 | C25: -5.5 | D25: 30.25
B26: 15 | C26: -10.5 | D26: 110.25
C27: ="Total must = Zero ="&SUM(C19:C26) -> Total must = Zero =0 | D27: =SUM(D19:D26) -> 242
C28: Sample Variance | D28: =D27/(D14-1) -> 34.57142857
C29: Sample Standard Deviation | D29: =D28^(1/2) -> 5.879747322
C30: Sample Standard Deviation | D30: =SQRT(D28) -> 5.879747322

Sheet (16)
A1: Scores | H1: Scores (Data Analysis Add-in Descriptive Statistics)
A2: 190 | C2: MAX | D2: =MAX(A2:A7) -> 190
A3: 184 | C3: MIN | D3: =MIN(A2:A7) -> 168 | H3: Mean | I3: 178
A4: 182 | C4: Range | D4: =D2-D3 -> 22 | H4: Standard Error | I4: 3.540244813
A5: 174 | C5: COUNT | D5: =COUNT(A2:A7) -> 6 | E5: n = sample size | H5: Median | I5: 178
A6: 170 | C6: AVERAGE | D6: =AVERAGE(A2:A7) -> 178 | E6: Mean | H6: Mode
A7: 168 | C7: VAR | D7: =_xlfn.VAR.S(A2:A7) -> 75.2 | E7: Sample Variance | F7: squared units | H7: Standard Deviation | I7: 8.671793355
C8: STDEV | D8: =_xlfn.STDEV.S(A2:A7) -> 8.671793355 | E8: Sample Standard Deviation | F8: ="Not "&F7 -> Not squared units | H8: Sample Variance | I8: 75.2
C9: Coefficient of Variation | D9: =D8/D6 -> 0.0487179402 | E9: Great for comparing this SD to others with 1) different means (means for apart), 2) Different SD (SD far apart), 3) SD with different units. | F9: Calculation does not involve multiplying by 100, like in textbook. This is a decimal formatted as a percent. | H9: Kurtosis | I9: -1.714576732
H10: Skewness | I10: 0.1987367762
H11: Range | I11: 22
A12: By Hand Method | H12: Minimum | I12: 168
A13: X | B13: (X - Xbar) (Deviations) | C13: (X - Xbar) (Deviations)^2 | H13: Maximum | I13: 190
A14: =A2 -> 190 | B14: =A14-D$6 -> 12 | C14: =B14^2 -> 144 | H14: Sum | I14: 1068
A15: 184 | B15: 6 | C15: 36 | H15: Count | I15: 6
A16: 182 | B16: 4 | C16: 16
A17: 174 | B17: -4 | C17: 16
A18: 170 | B18: -8 | C18: 64
A19: 168 | B19: -10 | C19: 100
A20: Totals | B20: =SUM(B14:B19) -> 0 | C20: =SUM(C14:C19) -> 376
B21: Sample Variance | C21: =C20/(D5-1) -> 75.2
B22: Sample Standard Deviation | C22: =C21^(1/2) -> 8.671793355 | D22: =SQRT(C21) -> 8.671793355
B25: =A13 -> X | C25: Y
B26: 190 | C26: 1
B27: 184 | C27: 1
B28: 182 | C28: 1
B29: 174 | C29: 1
B30: 170 | C30: 1
B31: 168 | C31: 1
A34: Mean | B34: =D6 -> 178 | C34: 0.5

Sheet (17)
C1: Model w DVD | E1: Model without DVD
C2: 450 | E2: 300
C3: 300 | E3: 300
C4: 400 | E4: 360
C5: 500 | E5: 290
C6: 400 | E6: 300
A7: a | B7: AVERAGE (Mean) | C7: =AVERAGE(C2:C6) -> 410 | D7: AVERAGE (Mean) | E7: =AVERAGE(E2:E6) -> 310
B8: ="From our sample data the average premium paid to get a model with a DVD was "&DOLLAR(C7-E7) -> From our sample data the average premium paid to get a model with a DVD was $100.00
A9: b | B9: Max | C9: =MAX(C2:C6) -> 500 | D9: Max | E9: =MAX(E2:E6) -> 360
B10: Min | C10: =MIN(C2:C6) -> 300 | D10: Min | E10: =MIN(E2:E6) -> 290
B11: Range | D11: =B11 -> Range
B12: Sample Variance | C12: =_xlfn.VAR.S(C2:C6) -> 5500 | D12: =B12 -> Sample Variance | E12: =_xlfn.VAR.S(E2:E6) -> 800 | F12: squared units
B13: Sample Standard Deviation | C13: =_xlfn.STDEV.S(C2:C6) -> 74.16198487 | D13: =B13 -> Sample Standard Deviation | E13: =_xlfn.STDEV.S(E2:E6) -> 28.28427125 | F13: ="Not "&F12 -> Not squared units
B14: Coefficient of Variation | C14: =C13/C7 -> 0.1808828899 | D14: Coefficient of Variation | E14: =E13/E7 -> 0.09123958467 | F14: Calculation does not involve multiplying by 100, like in textbook. This is a decimal formatted as a percent.
B15: ="From our sample data we see that there is much more variation in the sample data for the Model with a DVD. For example, the range of values for Model with the DVD was "&DOLLAR(MAX(C2:C6)-MIN(C2:C6))&" whereas the range for the model without the DVD was "&DOLLAR(MAX(E2:E6)-MIN(E2:E6))&". Further, calculating the Coefficient of Variation, we see that the Model without the DVD has "&DOLLAR(E14,4)&" of Standard Deviation for every $1.00 of its mean; whereas the Model with a DVD has "&DOLLAR(C14,4)&" of Standard Deviation for every $1.00 of its mean." -> From our sample data we see that there is much more variation in the sample data for the Model with a DVD. For example, the range of values for Model with the DVD was $200.00 whereas the range for the model without the DVD was $70.00. Further, calculating the Coefficient of Variation, we see that the Model without the DVD has $0.0912 of Standard Deviation for every $1.00 of its mean; whereas the Model with a DVD has $0.1809 of Standard Deviation for every $1.00 of its mean.
B16: Other ways to state comparisons with the Coefficient of Variation:
B17: ="You could also say it this way: The Model without the DVD has a Standard Deviation that is only "&TEXT(E14,"0.00%")&" of the value of its mean; whereas, the Model with the DVD has a Standard Deviation that is "&TEXT(C14,"0.00%")&" of the value of its mean." -> You could also say it this way: The Model without the DVD has a Standard Deviation that is only 9.12% of the value of its mean; whereas, the Model with the DVD has a Standard Deviation that is 18.09% of the value of its mean.
B18: ="You could also say it this way: For every $1.00 of mean, for the Model with the DVD has a Standard Deviation of "&DOLLAR(E14,4)&" and for the Model without the DVD has a Standard Deviation of "&DOLLAR(C14,4)&"." -> You could also say it this way: For every $1.00 of mean, for the Model with the DVD has a Standard Deviation of $0.0912 and for the Model without the DVD has a Standard Deviation of $0.1809.

Sheet (21)
A1: Sample Cities | B1: Grocery Costs | D1: Sample Retirement Areas | E1: Grocery Costs
A2: City 1 | B2: 33 | D2: Retirement Area 1 | E2: 29
A3: City 2 | B3: 27 | D3: Retirement Area 2 | E3: 32
A4: City 3 | B4: 32 | D4: Retirement Area 3 | E4: 32
A5: City 4 | B5: 38 | D5: Retirement Area 4 | E5: 34
A6: City 5 | B6: 36 | D6: Retirement Area 5 | E6: 34
A7: City 6 | B7: 32 | D7: Retirement Area 6 | E7: 31
A9: Mean | B9: =AVERAGE(B2:B7) -> 33 | D9: =A9 -> Mean | E9: =AVERAGE(E2:E7) -> 32
A10: Variance | B10: =VAR(B2:B7) -> 14.4 | D10: =A10 -> Variance | E10: =VAR(E2:E7) -> 3.6
A11: Standard Deviation | B11: =_xlfn.STDEV.S(B2:B7) -> 3.794733192 | D11: =A11 -> Standard Deviation | E11: =_xlfn.STDEV.S(E2:E7) -> 1.897366596
A13: Although the means for the city sample and retirement area sample are very close, the variation in data points for the city sample is twice as large as for the retirement area.

Sheet (25)
A1: Sample Data | B1: z = # SD above/below Mean | C1: meaning | E1: check
A2: 10 | B2: =(A2-$B$8)/$B$9 -> -1.25 | C2: ="The value of "&A2&" is "&B2&" standard deviations "&IF(B2<0,"below","above")&" the mean of "&$B$8 -> The value of 10 is -1.25 standard deviations below the mean of 15 | E2: =STANDARDIZE(A2,$B$8,$B$9) -> -1.25
A3: 20 | B3: =(A3-$B$8)/$B$9 -> 1.25 | C3: ="The value of "&A3&" is "&B3&" standard deviations "&IF(B3<0,"below","above")&" the mean of "&$B$8 -> The value of 20 is 1.25 standard deviations above the mean of 15 | E3: =STANDARDIZE(A3,$B$8,$B$9) -> 1.25
A4: 12 | B4: =(A4-$B$8)/$B$9 -> -0.75 | C4: ="The value of "&A4&" is "&B4&" standard deviations "&IF(B4<0,"below","above")&" the mean of "&$B$8 -> The value of 12 is -0.75 standard deviations below the mean of 15 | E4: =STANDARDIZE(A4,$B$8,$B$9) -> -0.75
A5: 17 | B5: =(A5-$B$8)/$B$9 -> 0.5 | C5: ="The value of "&A5&" is "&B5&" standard deviations "&IF(B5<0,"below","above")&" the mean of "&$B$8 -> The value of 17 is 0.5 standard deviations above the mean of 15 | E5: =STANDARDIZE(A5,$B$8,$B$9) -> 0.5
A6: 16 | B6: =(A6-$B$8)/$B$9 -> 0.25 | C6: ="The value of "&A6&" is "&B6&" standard deviations "&IF(B6<0,"below","above")&" the mean of "&$B$8 -> The value of 16 is 0.25 standard deviations above the mean of 15 | E6: =STANDARDIZE(A6,$B$8,$B$9) -> 0.25
A8: Mean | B8: =AVERAGE(A2:A6) -> 15
A9: Standard Deviation | B9: =_xlfn.STDEV.S(A2:A6) -> 4

Sheet (26)
A1: Sample Data
A2: Mean | B2: 500
A3: SD | B3: 100
A5: Particular X | B5: z = # SD above/below Mean | C5: meaning | E5: check
A6: 520 | B6: =(A6-$B$2)/$B$3 -> 0.2 | C6: ="The value of "&A6&" is "&B6&" standard deviations "&IF(B6<0,"below","above")&" the mean of "&$B$2 -> The value of 520 is 0.2 standard deviations above the mean of 500 | E6: =STANDARDIZE(A6,$B$2,$B$3) -> 0.2
A7: 650 | B7: =(A7-$B$2)/$B$3 -> 1.5 | C7: ="The value of "&A7&" is "&B7&" standard deviations "&IF(B7<0,"below","above")&" the mean of "&$B$2 -> The value of 650 is 1.5 standard deviations above the mean of 500 | E7: =STANDARDIZE(A7,$B$2,$B$3) -> 1.5
A8: 500 | B8: =(A8-$B$2)/$B$3 -> 0 | C8: ="The value of "&A8&" is "&B8&" standard deviations "&IF(B8<0,"below","above")&" the mean of "&$B$2 -> The value of 500 is 0 standard deviations above the mean of 500 | E8: =STANDARDIZE(A8,$B$2,$B$3) -> 0
A9: 450 | B9: =(A9-$B$2)/$B$3 -> -0.5 | C9: ="The value of "&A9&" is "&B9&" standard deviations "&IF(B9<0,"below","above")&" the mean of "&$B$2 -> The value of 450 is -0.5 standard deviations below the mean of 500 | E9: =STANDARDIZE(A9,$B$2,$B$3) -> -0.5
A10: 280 | B10: =(A10-$B$2)/$B$3 -> -2.2 | C10: ="The value of "&A10&" is "&B10&" standard deviations "&IF(B10<0,"below","above")&" the mean of "&$B$2 -> The value of 280 is -2.2 standard deviations below the mean of 500 | E10: =STANDARDIZE(A10,$B$2,$B$3) -> -2.2

Sheet (27)
A1: Sample Data
A2: Mean | B2: 30
A3: SD | B3: 5
A5: Chebyshev's Theorem = For any shaped data set, at least (1 - 1/z^2) proportion of the values will lie between +/- z standard deviations of the mean
C6: z = # SD above/below Mean
B7: lower | C7: =B7&" z" -> lower z | D7: upper | E7: =D7&" z" -> upper z | F7: ABS of upper and lower the same? | G7: limits | H7: proportion of the values will lie between +/- z standard deviations of the mean | I7: Meaning
A8: a | B8: 20 | C8: =(B8-$B$2)/$B$3 -> -2 | D8: 40 | E8: =(D8-$B$2)/$B$3 -> 2 | F8: =ABS(E8)=ABS(C8) -> TRUE | G8: =B8&" to "&D8 -> 20 to 40 | H8: =1-1/E8^2 -> 0.75 | I8: ="At least "&TEXT(H8,"0,00%")&" of the values lie between "&B8&" and "&D8 -> At least 075% of the values lie between 20 and 40
A9: b | B9: 15 | C9: =(B9-$B$2)/$B$3 -> -3 | D9: 45 | E9: =(D9-$B$2)/$B$3 -> 3 | F9: =ABS(E9)=ABS(C9) -> TRUE | G9: =B9&" to "&D9 -> 15 to 45 | H9: =1-1/E9^2 -> 0.8888888889 | I9: ="At least "&TEXT(H9,"0,00%")&" of the values lie between "&B9&" and "&D9 -> At least 089% of the values lie between 15 and 45
A10: c | B10: 22 | C10: =(B10-$B$2)/$B$3 -> -1.6 | D10: 38 | E10: =(D10-$B$2)/$B$3 -> 1.6 | F10: =ABS(E10)=ABS(C10) -> TRUE | G10: =B10&" to "&D10 -> 22 to 38 | H10: =1-1/E10^2 -> 0.609375 | I10: ="At least "&TEXT(H10,"0,00%")&" of the values lie between "&B10&" and "&D10 -> At least 061% of the values lie between 22 and 38
A11: d | B11: 18 | C11: =(B11-$B$2)/$B$3 -> -2.4 | D11: 42 | E11: =(D11-$B$2)/$B$3 -> 2.4 | F11: =ABS(E11)=ABS(C11) -> TRUE | G11: =B11&" to "&D11 -> 18 to 42 | H11: =1-1/E11^2 -> 0.8263888889 | I11: ="At least "&TEXT(H11,"0,00%")&" of the values lie between "&B11&" and "&D11 -> At least 083% of the values lie between 18 and 42
A12: e | B12: 12 | C12: =(B12-$B$2)/$B$3 -> -3.6 | D12: 48 | E12: =(D12-$B$2)/$B$3 -> 3.6 | F12: =ABS(E12)=ABS(C12) -> TRUE | G12: =B12&" to "&D12 -> 12 to 48 | H12: =1-1/E12^2 -> 0.9228395062 | I12: ="At least "&TEXT(H12,"0,00%")&" of the values lie between "&B12&" and "&D12 -> At least 092% of the values lie between 12 and 48
C18: check | E18: check
C19: =STANDARDIZE(B8,$B$2,$B$3) -> -2 | E19: =STANDARDIZE(D8,$B$2,$B$3) -> 2
C20: =STANDARDIZE(B9,$B$2,$B$3) -> -3 | E20: =STANDARDIZE(D9,$B$2,$B$3) -> 3
C21: =STANDARDIZE(B10,$B$2,$B$3) -> -1.6 | E21: =STANDARDIZE(D10,$B$2,$B$3) -> 1.6
C22: =STANDARDIZE(B11,$B$2,$B$3) -> -2.4 | E22: =STANDARDIZE(D11,$B$2,$B$3) -> 2.4
C23: =STANDARDIZE(B12,$B$2,$B$3) -> -3.6 | E23: =STANDARDIZE(D12,$B$2,$B$3) -> 3.6

Sheet (28)
A1: Data has a bell-shaped distribution, like these ====> | M1: Frequency | O1: X | P1: Relative Frequency
M2: 2 | O2: 2000 | P2: =NORMDIST(O2,3000,300,0) -> 5.140929988e-06
A3: Sample Data | M3: 4 | O3: 2010 | P3: =NORMDIST(O3,3000,300,0) -> 5.741896464e-06
A4: Mean | B4: 30 | M4: 6 | O4: 2020 | P4: 6.405993231e-06
A5: SD | B5: 5 | M5: 8 | O5: 2030 | P5: 7.138961573e-06
M6: 6 | O6: 2040 | P6: 7.946960672e-06
M7: 4 | O7: 2050 | P7: 8.836586515e-06
A8: For bell shaped data ==> Normal (Empirical) Rule: Approximately 68% of values lie between +/- 1 SD Approximately 95% of values lie between +/- 2 SD Approximately 99% of values lie between +/- 3 SD | M8: 2 | O8: 2060 | P8: 9.814890401e-06
O9: 2070 | P9: 1.088939685e-05
B10: lower | C10: =B10&" z (#SD)" -> lower z (#SD) | D10: upper | E10: =D10&" z (#SD)" -> upper z (#SD) | F10: ABS of upper and lower the same? | G10: limits | H10: meaning | O10: 2080 | P10: 1.206812076e-05
A11: a | B11: 20 | C11: =(B11-$B$4)/$B$5 -> -2 | D11: 40 | E11: =(D11-$B$4)/$B$5 -> 2 | F11: =ABS(C11)=ABS(E11) -> TRUE | G11: =B11&" to "&D11 -> 20 to 40 | H11: =VLOOKUP(E11,$H$15:$I$17,2,0)&" values lie between the values "&B11&" and "&D11 -> Approximately 95% of values lie between the values 20 and 40 | O11: 2090 | P11: 1.335958353e-05
A12: b | B12: 15 | C12: =(B12-$B$4)/$B$5 -> -3 | D12: 45 | E12: =(D12-$B$4)/$B$5 -> 3 | F12: =ABS(C12)=ABS(E12) -> TRUE | G12: =B12&" to "&D12 -> 15 to 45 | H12: =VLOOKUP(E12,$H$15:$I$17,2,0)&" lie between the values "&B12&" and "&D12 -> Approximately 99% of lie between the values 15 and 45 | O12: 2100 | P12: 1.477282804e-05
A13: c | B13: 25 | C13: =(B13-$B$4)/$B$5 -> -1 | D13: 35 | E13: =(D13-$B$4)/$B$5 -> 1 | F13: =ABS(C13)=ABS(E13) -> TRUE | G13: =B13&" to "&D13 -> 25 to 35 | H13: =VLOOKUP(E13,$H$15:$I$17,2,0)&" lie between the values "&B13&" and "&D13 -> Approximately 68% of lie between the values 25 and 35 | O13: 2110 | P13: 1.631743217e-05
O14: 2140 | P14: 2.18434403e-05
C15: standard deviations above and below the mean | H15: 1 | I15: Approximately 68% of | O15: 2150 | P15: 2.402033255e-05
C16: standard deviations above and below the mean | H16: 2 | I16: Approximately 95% of | O16: 2160 | P16: 2.638483861e-05
C17: standard deviations above and below the mean | H17: 3 | I17: Approximately 99% of | O17: 2170 | P17: 2.894991674e-05
O18: 2180 | P18: 3.172909218e-05
C19: check | E19: check | O19: 2190 | P19: 3.473644938e-05
C20: =STANDARDIZE(B11,$B$4,$B$5) -> -2 | E20: =STANDARDIZE(D11,$B$4,$B$5) -> 2 | O20: 2200 | P20: 3.798662008e-05
C21: =STANDARDIZE(B12,$B$4,$B$5) -> -3 | E21: =STANDARDIZE(D12,$B$4,$B$5) -> 3 | O21: 2210 | P21: 4.149476721e-05
C22: =STANDARDIZE(B13,$B$4,$B$5) -> -1 | E22: =STANDARDIZE(D13,$B$4,$B$5) -> 1 | O22: 2220 | P22: 4.527656411e-05
O23: 2230 | P23: 4.934816892e-05
O24: 2240 | P24: 5.372619371e-05
O25: 2250 | P25: 5.842766831e-05
O26: 2260 | P26: 6.346999839e-05
O27: 2270 | P27: 6.88709177e-05
O28: 2280 | P28: 7.464843432e-05
O29: 2290 | P29: 8.082077061e-05
O30: 2300 | P30: 8.740629698e-05
O31: 2310 | P31: 9.442345914e-05
O32: 2320 | P32: 0.0001018906991
O33: 2330 | P33: 0.0001098263697
O34: 2340 | P34: 0.0001182486428
O35: 2350 | P35: 0.0001271754117
O36: 2360 | P36: 0.0001366241868
O37: 2370 | P37: 0.0001466119866
O38: 2380 | P38: 0.0001571552224
O39: 2390 | P39: 0.0001682695786
O40: 2400 | P40: 0.0001799698884
O41: 2410 | P41: 0.0001922700052
O42: 2420 | P42: 0.0002051826712
O43: 2430 | P43: 0.0002187193826
O44: 2440 | P44: 0.0002328902536
O45: 2450 | P45: 0.0002477038785
O46: 2460 | P46: 0.0002631671943
O47: 2470 | P47: 0.0002792853432
O48: 2480 | P48: 0.000296061537
O49: 2490 | P49: 0.0003134969246
O50: 2500 | P50: 0.0003315904626
O51: 2510 | P51: 0.0003503387912
O52: 2520 | P52: 0.0003697361156
O53: 2530 | P53: 0.0003897740951
O54: 2540 | P54: 0.0004104417401
O55: 2550 | P55: 0.0004317253189
O56: 2560 | P56: 0.0004536082747
O57: 2570 | P57: 0.0004760711548
O58: 2580 | P58: 0.0004990915521
O59: 2590 | P59: 0.0005226440613
O60: 2600 | P60: 0.0005467002489
O61: 2610 | P61: 0.0005712286402
O62: 2620 | P62: 0.0005961947216
O63: 2630 | P63: 0.0006215609619
O64: 2640 | P64: 0.0006472868499
O65: 2650 | P65: =NORMDIST(O65,3000,300,0) -> 0.0006733289518
O66: 2660 | P66: 0.0006996409871
O67: 2670 | P67: 0.0007261739234
O68: 2680 | P68: 0.0007528760916
O69: 2690 | P69: 0.0007796933187
O70: 2700 | P70: 0.0008065690817
O71: 2710 | P71: 0.0008334446788
O72: 2720 | P72: 0.0008602594197
O73: 2730 | P73: 0.000886950833
O74: 2740 | P74: 0.0009134548913
O75: 2750 | P75: 0.0009397062514
O76: 2760 | P76: 0.0009656385092
O77: 2770 | P77: 0.0009911844689
O78: 2780 | P78: 0.001016276423
O79: 2790 | P79: 0.001040846445
O80: 2800 | P80: 0.001064826685
O81: 2810 | P81: 0.001088149683
O82: 2820 | P82: 0.001110748676
O83: 2830 | P83: 0.001132557914
O84: 2840 | P84: 0.001153512977
O85: 2850 | P85: 0.001173551089
O86: 2860 | P86: 0.001192611431
O87: 2870 | P87: 0.001210635444
O88: 2880 | P88: 0.001227567134
O89: 2890 | P89: 0.001243353356
O90: 2900 | P90: 0.001257944092
O91: 2910 | P91: 0.001271292718
O92: 2920 | P92: 0.001283356249
O93: 2930 | P93: 0.001294095569
O94: 2940 | P94: 0.001303475647
O95: 2950 | P95: 0.00131146572
O96: 2960 | P96: 0.00131803947
O97: 2970 | P97: 0.001323175158
O98: 2980 | P98: 0.001326855754
O99: 2990 | P99: 0.001329069025
O100: 3000 | P100: 0.001329807601
O101: 3010 | P101: 0.001329069025
O102: 3020 | P102: 0.001326855754
O103: 3030 | P103: 0.001323175158
O104: 3040 | P104: 0.00131803947
O105: 3050 | P105: 0.00131146572
O106: 3060 | P106: 0.001303475647
O107: 3070 | P107: 0.001294095569
O108: 3080 | P108: 0.001283356249
O109: 3090 | P109: 0.001271292718
O110: 3100 | P110: 0.001257944092
O111: 3110 | P111: 0.001243353356
O112: 3120 | P112: 0.001227567134
O113: 3130 | P113: 0.001210635444
O114: 3140 | P114: 0.001192611431
O115: 3150 | P115: 0.001173551089
O116: 3160 | P116: 0.001153512977
O117: 3170 | P117: 0.001132557914
O118: 3180 | P118: 0.001110748676
O119: 3190 | P119: 0.001088149683
O120: 3200 | P120: 0.001064826685
O121: 3210 | P121: 0.001040846445
O122: 3220 | P122: 0.001016276423
O123: 3230 | P123: 0.0009911844689
O124: 3240 | P124: 0.0009656385092
O125: 3250 | P125: 0.0009397062514
O126: 3260 | P126: 0.0009134548913
O127: 3270 | P127: 0.000886950833
O128: 3280 | P128: 0.0008602594197
O129: 3290 | P129: =NORMDIST(O129,3000,300,0) -> 0.0008334446788
O130: 3300 | P130: 0.0008065690817
O131: 3310 | P131: 0.0007796933187
O132: 3320 | P132: 0.0007528760916
O133: 3330 | P133: 0.0007261739234
O134: 3340 | P134: 0.0006996409871
O135: 3350 | P135: 0.0006733289518
O136: 3360 | P136: 0.0006472868499
O137: 3370 | P137: 0.0006215609619
O138: 3380 | P138: 0.0005961947216
O139: 3390 | P139: 0.0005712286402
O140: 3400 | P140: 0.0005467002489
O141: 3410 | P141: 0.0005226440613
O142: 3420 | P142: 0.0004990915521
O143: 3430 | P143: 0.0004760711548
O144: 3440 | P144: 0.0004536082747
O145: 3450 | P145: 0.0004317253189
O146: 3460 | P146: 0.0004104417401
O147: 3470 | P147: 0.0003897740951
O148: 3480 | P148: 0.0003697361156
O149: 3490 | P149: 0.0003503387912
O150: 3500 | P150: 0.0003315904626
O151: 3510 | P151: 0.0003134969246
O152: 3520 | P152: 0.000296061537
O153: 3530 | P153: 0.0002792853432
O154: 3540 | P154: 0.0002631671943
O155: 3550 | P155: 0.0002477038785
O156: 3560 | P156: 0.0002328902536
O157: 3570 | P157: 0.0002187193826
O158: 3580 | P158: 0.0002051826712
O159: 3590 | P159: 0.0001922700052
O160: 3600 | P160: 0.0001799698884
O161: 3610 | P161: 0.0001682695786
O162: 3620 | P162: 0.0001571552224
O163: 3630 | P163: 0.0001466119866
O164: 3640 | P164: 0.0001366241868
O165: 3650 | P165: 0.0001271754117
O166: 3660 | P166: 0.0001182486428
O167: 3670 | P167: 0.0001098263697
O168: 3680 | P168: 0.0001018906991
O169: 3690 | P169: 9.442345914e-05
O170: 3700 | P170: 8.740629698e-05
O171: 3710 | P171: 8.082077061e-05
O172: 3720 | P172: 7.464843432e-05
O173: 3730 | P173: 6.88709177e-05
O174: 3740 | P174: 6.346999839e-05
O175: 3750 | P175: 5.842766831e-05
O176: 3760 | P176: 5.372619371e-05
O177: 3770 | P177: 4.934816892e-05
O178: 3780 | P178: 4.527656411e-05
O179: 3790 | P179: 4.149476721e-05
O180: 3800 | P180: 3.798662008e-05
O181: 3810 | P181: 3.473644938e-05
O182: 3820 | P182: 3.172909218e-05
O183: 3830 | P183: 2.894991674e-05
O184: 3840 | P184: 2.638483861e-05
O185: 3850 | P185: 2.402033255e-05
O186: 3860 | P186: 2.18434403e-05
O187: 3870 | P187: 1.984177473e-05
O188: 3880 | P188: 1.80035206e-05
O189: 3890 | P189: 1.631743217e-05
O190: 3900 | P190: 1.477282804e-05
O191: 3910 | P191: 1.335958353e-05
O192: 3920 | P192: 1.206812076e-05
O193: 3930 | P193: =NORMDIST(O193,3000,300,0) -> 1.088939685e-05
O194: 3940 | P194: 9.814890401e-06
O195: 3950 | P195: 8.836586515e-06
O196: 3960 | P196: 7.946960672e-06
O197: 3970 | P197: 7.138961573e-06
O198: 3980 | P198: 6.405993231e-06
O199: 3990 | P199: 5.741896464e-06
O200: 4000 | P200: 5.140929988e-06

Sheet (29)
A1: National Survey
B2: # | C2: Units
A3: Mean time adults sleep per night | B3: 6.9 | C3: hours
A4: SD | B4: 1.2 | C4: hours
B6: lower | C6: =B6&" z (#SD)" -> lower z (#SD) | D6: upper | E6: =D6&" z (#SD)" -> upper z (#SD) | F6: ABS of upper and lower the same? | G6: Chebyshev's | J6: check | L6: check
A7: a | B7: 4.5 | C7: =(B7-$B$3)/$B$4 -> -2 | D7: 9.3 | E7: =(D7-$B$3)/$B$4 -> 2 | F7: =ABS(E7)=ABS(C7) -> TRUE | G7: =1-1/E7^2 -> 0.75 | H7: ="At least "&TEXT(G7,"0.00%")&" of adults sleep between "&B7&" and "&D7&" hours per night/day" -> At least 75.00% of adults sleep between 4.5 and 9.3 hours per night/day | J7: =STANDARDIZE(B7,$B$3,$B$4) -> -2 | L7: =STANDARDIZE(D7,$B$3,$B$4) -> 2
A8: b | B8: 3.9 | C8: =(B8-$B$3)/$B$4 -> -2.5 | D8: 9.9 | E8: =(D8-$B$3)/$B$4 -> 2.5 | F8: =ABS(E8)=ABS(C8) -> TRUE | G8: =1-1/E8^2 -> 0.84 | H8: ="At least "&TEXT(G8,"0.00%")&" of adults sleep between "&B8&" and "&D8&" hours per night/day" -> At least 84.00% of adults sleep between 3.9 and 9.9 hours per night/day | J8: =STANDARDIZE(B8,$B$3,$B$4) -> -2.5 | L8: =STANDARDIZE(D8,$B$3,$B$4) -> 2.5
A10: c 1 | B10: ="Assuming a Bell-Shaped distribution, approximately "&TEXT(1-NORMSDIST(C7)*2,"0.00%")&" of adults sleep between "&B7&" and "&D7&" hours per day/night" -> Assuming a Bell-Shaped distribution, approximately 95.45% of adults sleep between 4.5 and 9.3 hours per day/night
A11: This one not required ==> (we learn this later) | B11: ="Assuming a Bell-Shaped distribution, approximately "&TEXT(1-NORMSDIST(C8)*2,"0.00%")&" of adults sleep between "&B8&" and "&D8&" hours per day/night" -> Assuming a Bell-Shaped distribution, approximately 98.76% of adults sleep between 3.9 and 9.9 hours per day/night
A13: c 2 | B13: With the bell-shaped distribution we get about 95% and with a unknown distribution shaped we get a more conservative (smaller) 75%.

Sheet (30)
A1: Mean regular gas per gallon cost = | B1: 2.81 | G1: We can do this because the curve is symmetrical
A2: Suppose Sample SD = | B2: 0.1
A3: Retail price per gallon dstribution is bell shaped
C5: lower | D5: =C5&" z (#SD)" -> lower z (#SD) | E5: upper | F5: =E5&" z (#SD)" -> upper z (#SD) | G5: Total Area Under Curve (Probability) | H5: meaning
B6: a | C6: 2.71 | D6: =(C6-$B$1)/$B$2 -> -1 | E6: 2.91 | F6: =(E6-$B$1)/$B$2 -> 1 | G6: =D11 -> 0.68 | H6: =IF(G6="","","Aproximately "&TEXT(G6,"0.00%")&" of regular grade gas sold between "&DOLLAR(C6,2)&" and "&DOLLAR(E6,2)) -> Aproximately 68.00% of regular grade gas sold between $2.71 and $2.91
B7: b | C7: 2.71 | D7: =(C7-$B$1)/$B$2 -> -1 | E7: 3.01 | F7: =(E7-$B$1)/$B$2 -> 2 | G7: =E11+E12 -> 0.815 | H7: =IF(G7="","","Aproximately "&TEXT(G7,"0.00%")&" of regular grade gas sold between "&DOLLAR(C7,2)&" and "&DOLLAR(E7,2)) -> Aproximately 81.50% of regular grade gas sold between $2.71 and $3.01
B8: c | E8: 3.01 | F8: =(E8-$B$1)/$B$2 -> 2 | G8: =0.5-E12 -> 0.025 | H8: =IF(G8="","","Aproximately "&TEXT(G8,"0.00%")&" of regular grade gas sold above "&DOLLAR(E8,2)) -> Aproximately 2.50% of regular grade gas sold above $3.01
C10: # SD | D10: % | E10: Divide by 2
C11: 1 | D11: 0.68 | E11: =D11/2 -> 0.34
C12: 2 | D12: 0.95 | E12: =D12/2 -> 0.475
C13: 3 | D13: 0.99 | E13: =D13/2 -> 0.495
C26: 1 | D26: 2 | E26: 3
A27: X | B27: Bell Shaped Distribution | C27: ="+/- "&C26&"SD "&VLOOKUP(C26,$K$27:$L$29,2) -> +/- 1SD Approximately 68% of Values | D27: ="+/- "&D26&"SD "&VLOOKUP(D26,$K$27:$L$29,2) -> +/- 2SD Approximately 95% of Values | E27: ="+/- "&E26&"SD "&VLOOKUP(E26,$K$27:$L$29,2) -> +/- 3SD Approximately 99% of Values | K27: 1 | L27: Approximately 68% of Values
A28: =B1-B2*5 -> 2.31 | B28: =((1/($B$2*SQRT(2*PI())))*EXP(1)^-((A28-$B$1)^2/(2*$B$2^2)))/100 -> 1.486719515e-07 | C28: =IF(AND($A28>=$B$1-$B$2*C$26,$A28<=$B$1+$B$2*C$26),$B28,"") ->  | K28: 2 | L28: Approximately 95% of Values
A29: =A28+0.01 -> 2.32 | B29: =((1/($B$2*SQRT(2*PI())))*EXP(1)^-((A29-$B$1)^2/(2*$B$2^2)))/100 -> 2.438960746e-07 | K29: 3 | L29: Approximately 99% of Values
A30: =A29+0.01 -> 2.33 | B30: 3.961299091e-07
A31: 2.34 | B31: 6.369825179e-07
A32: 2.35 | B32: 1.014085207e-06
A33: 2.36 | B33: 1.598374111e-06
A34: 2.37 | B34: 2.494247129e-06
A35: 2.38 | B35: 3.853519674e-06
A36: 2.39 | B36: 5.894306776e-06
A37: 2.4 | B37: 8.926165718e-06
A38: 2.41 | B38: 1.338302258e-05
A39: 2.42 | B39: 1.986554714e-05
A40: 2.43 | B40: 2.919469258e-05
A41: 2.44 | B41: 4.247802706e-05
A42: 2.45 | B42: 6.119019301e-05
A43: 2.46 | B43: 8.72682695e-05
A44: 2.47 | B44: 0.0001232219168
A45: 2.48 | B45: 0.0001722568939
A46: 2.49 | B46: 0.0002384088201
A47: 2.5 | B47: 0.0003266819056
A48: 2.51 | B48: 0.0004431848412 | C48: =IF(AND($A48>=$B$1-$B$2*C$26,$A48<=$B$1+$B$2*C$26),$B48,"") ->  | E48: 0.0004431848412
A49: 2.52 | B49: 0.000595253242 | E49: 0.000595253242
A50: 2.53 | B50: 0.0007915451583 | E50: 0.0007915451583
A51: 2.54 | B51: 0.001042093481 | E51: 0.001042093481
A52: 2.55 | B52: 0.001358296923 | E52: 0.001358296923
A53: 2.56 | B53: 0.001752830049 | E53: 0.001752830049
A54: 2.57 | B54: 0.002239453029 | E54: 0.002239453029
A55: 2.58 | B55: 0.002832703774 | E55: 0.002832703774
A56: 2.59 | B56: 0.003547459285 | E56: 0.003547459285
A57: 2.6 | B57: 0.004398359598 | E57: 0.004398359598
A58: 2.61 | B58: 0.005399096651 | E58: 0.005399096651
A59: 2.62 | B59: 0.006561581477 | D59: 0.006561581477 | E59: 0.006561581477
A60: 2.63 | B60: 0.00789501583 | D60: 0.00789501583 | E60: 0.00789501583
A61: 2.64 | B61: 0.009404907738 | D61: 0.009404907738 | E61: 0.009404907738
A62: 2.65 | B62: 0.01109208347 | D62: 0.01109208347 | E62: 0.01109208347
A63: 2.66 | B63: 0.01295175957 | D63: 0.01295175957 | E63: 0.01295175957
A64: 2.67 | B64: 0.01497274656 | D64: 0.01497274656 | E64: 0.01497274656
A65: 2.68 | B65: 0.0171368592 | D65: 0.0171368592 | E65: 0.0171368592
A66: 2.69 | B66: 0.0194186055 | D66: 0.0194186055 | E66: 0.0194186055
A67: 2.7 | B67: 0.0217852177 | D67: 0.0217852177 | E67: 0.0217852177
A68: 2.71 | B68: 0.02419707245 | C68: =IF(AND($A68>=$B$1-$B$2*C$26,$A68<=$B$1+$B$2*C$26),$B68,"") ->  | D68: 0.02419707245 | E68: 0.02419707245
A69: 2.72 | B69: 0.02660852499 | C69: 0.02660852499 | D69: 0.02660852499 | E69: 0.02660852499
A70: 2.73 | B70: 0.02896915528 | C70: 0.02896915528 | D70: 0.02896915528 | E70: 0.02896915528
A71: 2.74 | B71: 0.03122539334 | C71: 0.03122539334 | D71: 0.03122539334 | E71: 0.03122539334
A72: 2.75 | B72: 0.03332246029 | C72: 0.03332246029 | D72: 0.03332246029 | E72: 0.03332246029
A73: 2.76 | B73: 0.03520653268 | C73: 0.03520653268 | D73: 0.03520653268 | E73: 0.03520653268
A74: 2.77 | B74: 0.03682701403 | C74: 0.03682701403 | D74: 0.03682701403 | E74: 0.03682701403
A75: 2.78 | B75: 0.03813878155 | C75: 0.03813878155 | D75: 0.03813878155 | E75: 0.03813878155
A76: 2.79 | B76: 0.0391042694 | C76: 0.0391042694 | D76: 0.0391042694 | E76: 0.0391042694
A77: 2.8 | B77: 0.03969525475 | C77: 0.03969525475 | D77: 0.03969525475 | E77: 0.03969525475
A78: 2.81 | B78: 0.03989422804 | C78: 0.03989422804 | D78: 0.03989422804 | E78: 0.03989422804
A79: 2.82 | B79: 0.03969525475 | C79: 0.03969525475 | D79: 0.03969525475 | E79: 0.03969525475
A80: 2.83 | B80: 0.0391042694 | C80: 0.0391042694 | D80: 0.0391042694 | E80: 0.0391042694
A81: 2.84 | B81: 0.03813878155 | C81: 0.03813878155 | D81: 0.03813878155 | E81: 0.03813878155
A82: 2.85 | B82: 0.03682701403 | C82: 0.03682701403 | D82: 0.03682701403 | E82: 0.03682701403
A83: 2.86 | B83: 0.03520653268 | C83: 0.03520653268 | D83: 0.03520653268 | E83: 0.03520653268
A84: 2.87 | B84: 0.03332246029 | C84: 0.03332246029 | D84: 0.03332246029 | E84: 0.03332246029
A85: 2.88 | B85: 0.03122539334 | C85: 0.03122539334 | D85: 0.03122539334 | E85: 0.03122539334
A86: 2.89 | B86: 0.02896915528 | C86: 0.02896915528 | D86: 0.02896915528 | E86: 0.02896915528
A87: 2.9 | B87: 0.02660852499 | C87: 0.02660852499 | D87: 0.02660852499 | E87: 0.02660852499
A88: 2.91 | B88: 0.02419707245 | C88: =IF(AND($A88>=$B$1-$B$2*C$26,$A88<=$B$1+$B$2*C$26),$B88,"") -> 0.02419707245 | D88: 0.02419707245 | E88: 0.02419707245
A89: 2.92 | B89: 0.0217852177 | D89: 0.0217852177 | E89: 0.0217852177
A90: 2.93 | B90: 0.0194186055 | D90: 0.0194186055 | E90: 0.0194186055
A91: 2.94 | B91: 0.0171368592 | D91: 0.0171368592 | E91: 0.0171368592
A92: 2.95 | B92: 0.01497274656 | D92: 0.01497274656 | E92: 0.01497274656
A93: 2.96 | B93: =((1/($B$2*SQRT(2*PI())))*EXP(1)^-((A93-$B$1)^2/(2*$B$2^2)))/100 -> 0.01295175957 | D93: 0.01295175957 | E93: 0.01295175957
A94: =A93+0.01 -> 2.97 | B94: 0.01109208347 | D94: 0.01109208347 | E94: 0.01109208347
A95: 2.98 | B95: 0.009404907738 | D95: 0.009404907738 | E95: 0.009404907738
A96: 2.99 | B96: 0.00789501583 | D96: 0.00789501583 | E96: 0.00789501583
A97: 3 | B97: 0.006561581477 | D97: 0.006561581477 | E97: 0.006561581477
A98: 3.01 | B98: 0.005399096651 | D98: 0.005399096651 | E98: 0.005399096651
A99: 3.02 | B99: 0.004398359598 | E99: 0.004398359598
A100: 3.03 | B100: 0.003547459285 | E100: 0.003547459285
A101: 3.04 | B101: 0.002832703774 | E101: 0.002832703774
A102: 3.05 | B102: 0.002239453029 | E102: 0.002239453029
A103: 3.06 | B103: 0.001752830049 | E103: 0.001752830049
A104: 3.07 | B104: 0.001358296923 | E104: 0.001358296923
A105: 3.08 | B105: 0.001042093481 | E105: 0.001042093481
A106: 3.09 | B106: 0.0007915451583 | E106: 0.0007915451583
A107: 3.1 | B107: 0.000595253242 | E107: 0.000595253242
A108: 3.11 | B108: 0.0004431848412 | C108: =IF(AND($A108>=$B$1-$B$2*C$26,$A108<=$B$1+$B$2*C$26),$B108,"") ->  | E108: 0.0004431848412
A109: 3.12 | B109: 0.0003266819056
A110: 3.13 | B110: 0.0002384088201
A111: 3.14 | B111: 0.0001722568939
A112: 3.15 | B112: 0.0001232219168
A113: 3.16 | B113: 8.72682695e-05
A114: 3.17 | B114: 6.119019301e-05
A115: 3.18 | B115: 4.247802706e-05
A116: 3.19 | B116: 2.919469258e-05
A117: 3.2 | B117: 1.986554714e-05
A118: 3.21 | B118: 1.338302258e-05
A119: 3.22 | B119: 8.926165718e-06
A120: 3.23 | B120: 5.894306776e-06
A121: 3.24 | B121: 3.853519674e-06
A122: 3.25 | B122: 2.494247129e-06
A123: 3.26 | B123: 1.598374111e-06
A124: 3.27 | B124: 1.014085207e-06
A125: 3.28 | B125: 6.369825179e-07
A126: 3.29 | B126: 3.961299091e-07
A127: 3.3 | B127: 2.438960746e-07
A128: 3.31 | B128: 1.486719515e-07

Sheet 36-37
A1: SampleData | C1: by hand | E1: position | F1: Proportion | I1: Excel 5-Number Summary
A2: 15 | C2: =H2 -> MIN | D2: =MIN(A2:A9) -> 15 | H2: MIN | I2: =_xlfn.QUARTILE.INC($A$2:$A$9,J2) -> 15 | J2: 0 | L2: =_xlfn.QUARTILE.EXC($A$2:$A$9,J2) -> 
A3: 20 | C3: Quartile1 | D3: =AVERAGE(A3:A4) -> 22.5 | E3: =COUNT($A$2:$A$9)*F3 -> 2 | F3: 0.25 | H3: Quartile1 | I3: =_xlfn.QUARTILE.INC($A$2:$A$9,J3) -> 23.75 | J3: 1 | L3: =_xlfn.QUARTILE.EXC($A$2:$A$9,J3) -> 21.25
A4: 25 | C4: Quartile2 | D4: =MEDIAN(A2:A9) -> 26 | H4: Quartile2 | I4: 26 | J4: 2 | L4: 26
A5: 25 | C5: Quartile3 | D5: =AVERAGE(A7:A8) -> 29 | E5: =COUNT($A$2:$A$9)*F5 -> 6 | F5: 0.75 | H5: Quartile3 | I5: 28.5 | J5: 3 | L5: 29.5
A6: 27 | C6: MAX | D6: =MAX(A2:A9) -> 34 | H6: MAX | I6: 34 | J6: 4
A7: 28 | C7: Interquartile Range | D7: =D5-D3 -> 6.5 | H7: Interquartile Range | I7: =I5-I3 -> 4.75
A8: 30 | C8: Lower Limit | D8: =D3-1.5*D7 -> 12.75 | E8: Quartile 1 - 1.5*Interquartile Range | H8: Lower Limit | I8: =I3-1.5*I7 -> 16.625
A9: 34 | C9: Higher Limit | D9: =D5+1.5*D7 -> 38.75 | E9: Quartile 3 + 1.5*Interquartile Range | H9: Higher Limit | I9: =I5+1.5*I7 -> 35.625
C10: Smallest inside lower limit | D10: =D2 -> 15 | H10: Smallest inside lower limit | I10: =MIN(IF(A2:A9>I8,A2:A9)) -> 20
C11: Biggest inside lower limit | D11: =D6 -> 34 | H11: Biggest inside lower limit | I11: =MAX(IF(A2:A9<I9,A2:A9)) -> 34
C15: =C2 -> MIN | D15: =D2-D1 -> 15
C16: =C3 -> Quartile1 | D16: =D3-D2 -> 7.5
C17: =C4 -> Quartile2 | D17: =D4-D3 -> 3.5
C18: =C5 -> Quartile3 | D18: =D5-D4 -> 3
C19: =C6 -> MAX | D19: =D6-D5 -> 5
C20: Mean
C21: =AVERAGE(A2:A9) -> 25.5 | D21: 1

Sheet (42) (hidden)
M1: Label | N1: =E4&" = "&F4&CHAR(10)&E5&" = "&F5&CHAR(10)&E6&" = "&F6&CHAR(10)&E7&" = "&F7&CHAR(10)&E8&" = "&F8 -> Min = 30 Quartile 1 = 50.5 Quartile 2 = 66 Quartile 3 = 87.75 Max = 208
A2: Team | B2: Payroll | H2: COUNT | I2: =COUNT(B3:B32) -> 30
A3: Tampa Bay | B3: 30 | E3: Excel | H3: by hand
A4: Kansas City | B4: 37 | D4: 0 | E4: Min | F4: =QUARTILE($B$3:$B$32,D4) -> 30 | I4: i | J4: roundup | K4: Value
A5: Pittsburgh | B5: 38 | D5: 1 | E5: Quartile 1 | F5: =QUARTILE($B$3:$B$32,D5) -> 50.5 | H5: 0.25 | I5: =$I$2*H5 -> 7.5 | J5: =ROUNDUP(I5,0) -> 8 | K5: =INDEX($B$3:$B$32,J5) -> 49
A6: Milwaukee | B6: 40 | D6: 2 | E6: Quartile 2 | F6: =QUARTILE($B$3:$B$32,D6) -> 66 | H6: 0.75 | I6: =$I$2*H6 -> 22.5 | J6: =ROUNDUP(I6,0) -> 23 | K6: =INDEX($B$3:$B$32,J6) -> 88
A7: Cleveland | B7: 42 | D7: 3 | E7: Quartile 3 | F7: =QUARTILE($B$3:$B$32,D7) -> 87.75
A8: Toronto | B8: 46 | D8: 4 | E8: Max | F8: =QUARTILE($B$3:$B$32,D8) -> 208
A9: Colorado | B9: 48 | I9: Interquartile range | J9: =K6-K5 -> 39
A10: Washington | B10: 49 | E10: Chart Data | I10: Lower Limit | J10: =K5-1.5*$J$9 -> -9.5 | K10: Quartile 1 - 1.5*Interquartile Range
A11: Oakland | B11: 55 | F11: =F3-F2 -> 0 | I11: Higher Limit | J11: =K6+1.5*$J$9 -> 146.5 | K11: Quartile 3 + 1.5*Interquartile Range
A12: Minnesota | B12: 56 | E12: =E4 -> Min | F12: 30 | I12: Smallest inside lower limit | J12: =B3 -> 30
A13: Texas | B13: 56 | E13: =E5 -> Quartile 1 | F13: 20.5 | I13: Biggest inside lower limit | J13: =B31 -> 124
A14: Florida | B14: 60 | E14: =E6 -> Quartile 2 | F14: 15.5 | I14: See by hand drawing below ==>>
A15: Arizona | B15: 62 | E15: =E7 -> Quartile 3 | F15: 21.75
A16: Cincinnati | B16: 62 | E16: =E8 -> Max | F16: 120.25
A17: San Diego | B17: 63 | E17: Interquartile range | F17: =F7-F5 -> 37.25
A18: Detroit | B18: 69 | E18: Lower Limit | F18: =F5- 1.5*$F$17 -> -5.375 | G18: Quartile 1 - 1.5*Interquartile Range
A19: Baltimore | B19: 74 | E19: Higher Limit | F19: =F7+1.5*$F$17 -> 143.625 | G19: Quartile 3 + 1.5*Interquartile Range
A20: Chi White Sox | B20: 75 | E20: Smallest inside lower limit | F20: =INDEX($B$3:$B$32,MATCH(IF(F18>0,0,MIN(B3:B32)),$B$3:$B$32)) -> 30
A21: Houston | B21: 77 | E21: Biggest inside lower limit | F21: =INDEX($B$3:$B$32,MATCH(F19,$B$3:$B$32)) -> 124
A22: LA Dodgers | B22: 83 | E22: Upper Bar % | F22: =(F21-F7) -> 36.25
A23: Atlanta | B23: 86 | E23: Outlier | F23: 1 | G23: =B32 -> 208
A24: Chi Cubs | B24: 87 | E24: Mean | F24: =AVERAGE(B3:B32) -> 73.06666667
A25: Seattle | B25: 88
A26: San Francisco | B26: 90
A27: St. Louis | B27: 92
A28: Philadelphia | B28: 96
A29: LA Angles | B29: 98
A30: NY Mets | B30: 101
A31: Boston | B31: 124
A32: NY Yankees | B32: 208
A34: =A32&" at "&DOLLAR(B32) -> NY Yankees at $208.00

Sheet (58)
A1: 2003 Ave Visa charge | B1: 1838
A3: No | B3: SampleData | G3: Excel | I3: By Hand
A4: 1 | B4: 170 | D4: a | F4: Mean | G4: =AVERAGE(sccd) -> 1800
A5: 2 | B5: 236 | D5: a | F5: Median | G5: =MEDIAN(sccd) -> 1351
A6: 3 | B6: 316 | E6: 0 | F6: Min | G6: =_xlfn.QUARTILE.INC(sccd,E6) -> 170 | I6: Value | J6: position
A7: 4 | B7: 387 | D7: b | E7: 1 | F7: Quartile1 | G7: =_xlfn.QUARTILE.INC(sccd,E7) -> 606 | I7: =VLOOKUP(ROUNDUP(J7,0),$A$4:$B$18,2) -> 387 | J7: =COUNT(sccd)*K7 -> 3.75 | K7: 0.25
A8: 5 | B8: 825 | D8: b | E8: 2 | F8: Quartile2 | G8: =_xlfn.QUARTILE.INC(sccd,E8) -> 1351
A9: 6 | B9: 991 | E9: 3 | F9: Quartile3 | G9: =_xlfn.QUARTILE.INC(sccd,E9) -> 1699 | I9: =VLOOKUP(ROUNDUP(J9,0),$A$4:$B$18,2) -> 1710 | J9: =COUNT(sccd)*K9 -> 11.25 | K9: 0.75
A10: 7 | B10: 1333 | E10: 4 | F10: Max | G10: =_xlfn.QUARTILE.INC(sccd,E10) -> 7450
A11: 8 | B11: 1351 | D11: c | F11: Range | G11: =G10-G6 -> 7280
A12: 9 | B12: 1428 | D12: c | F12: Interquartile range | G12: =G9-G7 -> 1093 | I12: =I9-I7 -> 1323
A13: 10 | B13: 1584 | D13: d | F13: Sample Variance | G13: =_xlfn.VAR.S(sccd) -> 3675303
A14: 11 | B14: 1688 | D14: d | F14: Sample SD | G14: =_xlfn.STDEV.S(sccd) -> 1917.107978
A15: 12 | B15: 1710 | F15: Chebyshev's | G15: ="75% of values lie between "&IF(G4-G14*2<0,0,G4-G14*2)&" and "&G4+G14*2 -> 75% of values lie between 0 and 5634.21595635927
A16: 13 | B16: 3396 | F16: Empirical | G16: ="68% of values lie between 0 and "&G4+G14 -> 68% of values lie between 0 and 3717.10797817963
A17: 14 | B17: 4135 | D17: e | F17: Skew | G17: =SKEW(sccd) -> 2.119527458
A18: 15 | B18: 7450 | G18: I would expect positive skew because some large values are pulling the mean up
D20: f | E20: X | F20: z # SD | G20: z = Outlier > 3 | H20: Outlier Limit = Q1 - 1.5*Interquartile range | I20: Outlier Limit = Q3 + 1.5*Interquartile range
E21: =B4 -> 170 | F21: =(B4-$G$4)/$G$14 -> -0.8502390155 | G21: =F21>3 -> FALSE | H21: =IF($I$7-1.5*$I$12<0,0,$I$7-1.5*$I$12)>E21 -> FALSE | I21: =$I$9+1.5*$I$12<E21 -> FALSE
E22: 236 | F22: -0.8158121597 | G22: FALSE | H22: =IF($I$7-1.5*$I$12<0,0,$I$7-1.5*$I$12)>E22 -> FALSE | I22: FALSE
E23: 316 | F23: -0.7740826374 | G23: FALSE | H23: FALSE | I23: FALSE
E24: 387 | F24: -0.7370476865 | G24: FALSE | H24: FALSE | I24: FALSE
E25: 825 | F25: -0.5085785522 | G25: FALSE | H25: FALSE | I25: FALSE
E26: 991 | F26: -0.4219897936 | G26: FALSE | H26: FALSE | I26: FALSE
E27: 1333 | F27: -0.243596086 | G27: FALSE | H27: FALSE | I27: FALSE
E28: 1351 | F28: -0.2342069435 | G28: FALSE | H28: FALSE | I28: FALSE
E29: 1428 | F29: -0.1940422784 | G29: FALSE | H29: FALSE | I29: FALSE
E30: 1584 | F30: -0.11266971 | G30: FALSE | H30: FALSE | I30: FALSE
E31: 1688 | F31: -0.05842133113 | G31: FALSE | H31: FALSE | I31: FALSE
E32: 1710 | F32: -0.04694571251 | G32: FALSE | H32: FALSE | I32: FALSE
E33: 3396 | F33: 0.8325039686 | G33: FALSE | H33: FALSE | I33: FALSE
E34: 4135 | F34: 1.21798043 | G34: FALSE | H34: FALSE | I34: TRUE
E35: 7450 | F35: 2.947147508 | G35: FALSE | H35: FALSE | I35: TRUE
